{"text_format":"1","workbook":"xlsx","n_sheets":12,"sheets":["イ-4","イ-5","イ-6","イ-7","イ-8","イ-9","イ-10","イ-11","イ-12","イ-13","イ-14","イ-15"],"not_rendered":{"charts":0,"images":0,"macros":0,"external_links":0,"defined_names":12,"comments":0,"pivot_tables":0},"unopened":[],"bounds":{"document_bytes":16777216,"sheet_cells":100000,"rows_first":2000,"rows_last":500,"rows_between":2000,"halvings":0,"cell_chars":16384,"cell_head_chars":4096},"cells_cut":0,"cells_raw":0,"read":"whole","date_system":"1900"}

{"sheet":"イ-4","index":0,"n_rows":39,"n_cols":49,"rows_kept":39,"cut":false,"hidden":false,"merged":[[33,16,33,18],[34,16,34,18],[32,9,34,15],[33,30,33,32],[34,30,34,32],[32,19,32,29],[33,19,33,29],[34,19,34,29],[28,16,28,18],[26,9,28,15],[32,30,32,32],[32,16,32,18],[26,30,26,32],[27,30,27,32],[28,30,28,32],[26,19,26,29],[27,19,27,29],[28,19,28,29],[1,0,1,49],[6,41,6,49],[4,22,4,40],[4,17,4,20],[5,17,5,20],[6,17,6,20],[2,46,2,47],[38,26,38,29],[20,20,20,23],[2,40,2,41],[2,43,2,44],[5,22,5,40],[6,22,6,40],[7,22,7,40],[7,17,7,20],[12,19,12,29],[12,30,12,32],[12,9,12,18],[16,19,16,29],[16,9,16,18],[16,30,16,32],[26,16,26,18],[27,16,27,18]]}
[]
["中小企業信用保険法第2条第5項第5号認定申請書添付資料(イ-４)"]
[null,null,null,null,null,null,null,null,null,null,null,null,null,null,null,null,null,null,null,null,null,null,null,null,null,null,null,null,null,null,null,null,null,null,null,null,null,null,"令和",null,null,null,"年",null,null,"月",null,null,"日"]
[]
[null,null,null,null,null,null,null,null,null,null,null,null,null,null,null,null,null,"所在地"]
[null,null,null,null,null,null,null,null,null,null,null,null,null,null,null,null,null,"企業名"]
[null,null,null,null,null,null,null,null,null,null,null,null,null,null,null,null,null,"代表者名",null,null,null,null,null,null,null,null,null,null,null,null,null,null,null,null,null,null,null,null,null,null,null,"個人事業主の場合\n代表者名は自署"]
[null,null,null,null,null,null,null,null,null,null,null,null,null,null,null,null,null,"電話番号",null,null,null,null,"(　　　　　　　　)"]
[null,null,null,null,null,null,null,null,"（イ）　最近１か月間の売上高等"]
[]
[null,null,null,null,null,null,null,null,"　A：申込時点における最近１か月間の売上高等（　　　　　　　　年　　　　　月）"]
[]
[null,null,null,null,null,null,null,null,null,"売上高等(実績)",null,null,null,null,null,null,null,null,null,null,null,null,null,null,null,null,null,null,null,null,"円【A】"]
[]
[null,null,null,null,null,null,null,null,"　B：Aの期間に対応する前年１か月間の売上高等（　　　　　　　　年　　　　　月）"]
[]
[null,null,null,null,null,null,null,null,null,"売上高等(実績)",null,null,null,null,null,null,null,null,null,null,null,null,null,null,null,null,null,null,null,null,"円【B】"]
[]
[null,null,null,null,null,null,null,null,"　減少率"]
[]
[null,null,null,null,null,null,null,null,null,"　( B - A ) ÷ B × １００ ＝　",null,null,null,null,null,null,null,null,null,null,{"$f":"IFERROR(ROUNDDOWN((((T17-T13)/T17)*100),1),\"\")","v":""},null,null,null,"％","　","≧","　５％　(実績)"]
[]
[null,null,null,null,null,null,null,null,"（ロ）　最近３か月間の売上高等の実績見込み"]
[]
[null,null,null,null,null,null,null,null,"　C：Aの期間後２か月間の見込み売上高等（　　　　　　　　年　　　　　月～　　　　　月）"]
[]
[null,null,null,null,null,null,null,null,null,"売上高等(見込)",null,null,null,null,null,null,"月",null,null,null,null,null,null,null,null,null,null,null,null,null,"円"]
[null,null,null,null,null,null,null,null,null,null,null,null,null,null,null,null,"月",null,null,null,null,null,null,null,null,null,null,null,null,null,"円"]
[null,null,null,null,null,null,null,null,null,null,null,null,null,null,null,null,"合計",null,null,{"$f":"SUM(T27:AD28)","v":0},null,null,null,null,null,null,null,null,null,null,"円【C】"]
[]
[null,null,null,null,null,null,null,null,"　D：Cの期間に対応する前年２か月間の売上高等（　　　　　　　　年　　　　　月～　　　　　月）"]
[]
[null,null,null,null,null,null,null,null,null,"売上高等(実績)",null,null,null,null,null,null,"月",null,null,null,null,null,null,null,null,null,null,null,null,null,"円"]
[null,null,null,null,null,null,null,null,null,null,null,null,null,null,null,null,"月",null,null,null,null,null,null,null,null,null,null,null,null,null,"円"]
[null,null,null,null,null,null,null,null,null,null,null,null,null,null,null,null,"合計",null,null,{"$f":"SUM(T33:AD34)","v":0},null,null,null,null,null,null,null,null,null,null,"円【D】"]
[]
[null,null,null,null,null,null,null,null,"　減少率"]
[]
[null,null,null,null,null,null,null,null,null,"（ ( B ＋D )-（ A + C ） ÷ （ B + D ） ） × １００ ＝　",null,null,null,null,null,null,null,null,null,null,null,null,null,null,null,null,{"$f":"IFERROR(ROUNDDOWN(((((T17+T35)-(T13+T29))/(T17+T35))*100),1),\"\")","v":""},null,null,null,"％","　","≧","　５％　(実績見込み)"]

{"sheet":"イ-5","index":1,"n_rows":53,"n_cols":49,"rows_kept":53,"cut":false,"hidden":false,"merged":[[34,9,36,15],[40,30,40,32],[41,30,41,32],[42,30,42,32],[40,16,40,18],[41,16,41,18],[42,16,42,18],[40,9,42,15],[34,16,34,18],[35,16,35,18],[34,30,34,32],[35,30,35,32],[40,19,40,29],[41,19,41,29],[42,19,42,29],[36,30,36,32],[5,17,5,20],[5,22,5,40],[6,17,6,20],[6,22,6,40],[6,41,6,49],[1,0,1,49],[2,40,2,41],[2,43,2,44],[2,46,2,47],[4,17,4,20],[4,22,4,40],[12,30,12,32],[17,9,17,18],[17,19,17,29],[17,30,17,32],[7,17,7,20],[7,22,7,40],[12,9,12,18],[12,19,12,29],[13,19,13,29],[13,30,13,32],[31,9,33,15],[31,16,31,18],[32,16,32,18],[33,16,33,18],[13,9,13,18],[18,9,18,18],[18,19,18,29],[18,30,18,32],[35,19,35,29],[36,19,36,29],[36,16,36,18],[23,20,23,23],[31,30,31,32],[32,30,32,32],[33,30,33,32],[31,19,31,29],[34,19,34,29],[32,19,32,29],[33,19,33,29],[25,20,25,23],[52,30,52,33],[43,16,43,18],[44,16,44,18],[45,16,45,18],[43,9,45,15],[50,28,50,31],[43,30,43,32],[44,30,44,32],[45,30,45,32],[43,19,43,29],[44,19,44,29],[45,19,45,29]]}
[]
["中小企業信用保険法第2条第5項第5号認定申請書添付資料(イ-５)"]
[null,null,null,null,null,null,null,null,null,null,null,null,null,null,null,null,null,null,null,null,null,null,null,null,null,null,null,null,null,null,null,null,null,null,null,null,null,null,"令和",null,null,null,"年",null,null,"月",null,null,"日"]
[]
[null,null,null,null,null,null,null,null,null,null,null,null,null,null,null,null,null,"所在地"]
[null,null,null,null,null,null,null,null,null,null,null,null,null,null,null,null,null,"企業名"]
[null,null,null,null,null,null,null,null,null,null,null,null,null,null,null,null,null,"代表者名",null,null,null,null,null,null,null,null,null,null,null,null,null,null,null,null,null,null,null,null,null,null,null,"個人事業主の場合\n代表者名は自署"]
[null,null,null,null,null,null,null,null,null,null,null,null,null,null,null,null,null,"電話番号",null,null,null,null,"(　　　　　　　　)"]
[null,null,null,null,null,null,null,null,"（イ）　最近１か月間の売上高等"]
[]
[null,null,null,null,null,null,null,null,"　A：申込時点における最近１か月間の売上高等（　　　　　　　　年　　　　　月）"]
[]
[null,null,null,null,null,null,null,null,null,"主たる業種の\n売上高等(実績)",null,null,null,null,null,null,null,null,null,null,null,null,null,null,null,null,null,null,null,null,"円【A】"]
[null,null,null,null,null,null,null,null,null,"全体の\n売上高等(実績)",null,null,null,null,null,null,null,null,null,null,null,null,null,null,null,null,null,null,null,null,"円【A´】"]
[]
[null,null,null,null,null,null,null,null,"　B：Aの期間に対応する前年１か月間の売上高等（　　　　　　　　年　　　　　月）"]
[]
[null,null,null,null,null,null,null,null,null,"主たる業種の\n売上高等(実績)",null,null,null,null,null,null,null,null,null,null,null,null,null,null,null,null,null,null,null,null,"円【B】"]
[null,null,null,null,null,null,null,null,null,"全体の\n売上高等(実績)",null,null,null,null,null,null,null,null,null,null,null,null,null,null,null,null,null,null,null,null,"円【B´】"]
[]
[null,null,null,null,null,null,null,null,"　減少率"]
[]
[null,null,null,null,null,null,null,null,null,"主たる業種"]
[null,null,null,null,null,null,null,null,null,"　( B - A ) ÷ B × １００ ＝　",null,null,null,null,null,null,null,null,null,null,{"$f":"IFERROR(ROUNDDOWN(((T18-T13)/T18)*100,1),\"\")","v":""},null,null,null,"％","　","≧","　５％　(実績)"]
[null,null,null,null,null,null,null,null,null,"全体"]
[null,null,null,null,null,null,null,null,null,"　( B´ - A´ ) ÷ B´ × １００ ＝　",null,null,null,null,null,null,null,null,null,null,{"$f":"IFERROR(ROUNDDOWN(((T19-T14)/T19)*100,1),\"\")","v":""},null,null,null,"％",null,"≧","　５％　(実績)"]
[]
[null,null,null,null,null,null,null,null,"（ロ）　最近３か月間の売上高等の実績見込み"]
[]
[null,null,null,null,null,null,null,null,"　C：Aの期間後２か月間の見込み売上高等（　　　　　　　　年　　　　　月～　　　　　月）"]
[]
[null,null,null,null,null,null,null,null,null,"主たる業種の\n売上高等(見込)",null,null,null,null,null,null,"月",null,null,null,null,null,null,null,null,null,null,null,null,null,"円"]
[null,null,null,null,null,null,null,null,null,null,null,null,null,null,null,null,"月",null,null,null,null,null,null,null,null,null,null,null,null,null,"円"]
[null,null,null,null,null,null,null,null,null,null,null,null,null,null,null,null,"合計",null,null,{"$f":"SUM(T32:AD33)","v":0},null,null,null,null,null,null,null,null,null,null,"円【C】"]
[null,null,null,null,null,null,null,null,null,"全体の\n売上高等(見込)",null,null,null,null,null,null,"月",null,null,null,null,null,null,null,null,null,null,null,null,null,"円"]
[null,null,null,null,null,null,null,null,null,null,null,null,null,null,null,null,"月",null,null,null,null,null,null,null,null,null,null,null,null,null,"円"]
[null,null,null,null,null,null,null,null,null,null,null,null,null,null,null,null,"合計",null,null,{"$f":"SUM(T35:AD36)","v":0},null,null,null,null,null,null,null,null,null,null,"円【C´】"]
[]
[null,null,null,null,null,null,null,null,"　D：Cの期間に対応する前年２か月間の売上高等（　　　　　　　　年　　　　　月～　　　　　月）"]
[]
[null,null,null,null,null,null,null,null,null,"主たる業種の\n売上高等(実績)",null,null,null,null,null,null,"月",null,null,null,null,null,null,null,null,null,null,null,null,null,"円"]
[null,null,null,null,null,null,null,null,null,null,null,null,null,null,null,null,"月",null,null,null,null,null,null,null,null,null,null,null,null,null,"円"]
[null,null,null,null,null,null,null,null,null,null,null,null,null,null,null,null,"合計",null,null,{"$f":"SUM(T41:AC42)","v":0},null,null,null,null,null,null,null,null,null,null,"円【D】"]
[null,null,null,null,null,null,null,null,null,"全体の\n売上高等(実績)",null,null,null,null,null,null,"月",null,null,null,null,null,null,null,null,null,null,null,null,null,"円"]
[null,null,null,null,null,null,null,null,null,null,null,null,null,null,null,null,"月",null,null,null,null,null,null,null,null,null,null,null,null,null,"円"]
[null,null,null,null,null,null,null,null,null,null,null,null,null,null,null,null,"合計",null,null,{"$f":"SUM(T44:AC45)","v":0},null,null,null,null,null,null,null,null,null,null,"円【D´】"]
[]
[null,null,null,null,null,null,null,null,"　減少率"]
[]
[null,null,null,null,null,null,null,null,null,"主たる業種"]
[null,null,null,null,null,null,null,null,null,"　（ ( B ＋D ) - （ A + C ） ÷ （ B + D ） ） × １００ ＝　",null,null,null,null,null,null,null,null,null,null,null,null,null,null,null,null,null,null,{"$f":"IFERROR(ROUNDDOWN((((T18+T43)-(T13+T34))/(T18+T43))*100,1),\"\")","v":""},null,null,null,"％","　","≧","　５％　(実績見込み)"]
[null,null,null,null,null,null,null,null,null,"全体"]
[null,null,null,null,null,null,null,null,null,"　（ ( B ´＋D´ ) - （ A´ + C´ ） ÷ （ B´ + D´ ） ） × １００ ＝　",null,null,null,null,null,null,null,null,null,null,null,null,null,null,null,null,null,null,null,null,{"$f":"IFERROR(ROUNDDOWN((((T19+T46)-(T14+T37))/(T19+T46))*100,1),\"\")","v":""},null,null,null,"％","　","≧","　５％　(実績見込み)"]

{"sheet":"イ-6","index":2,"n_rows":74,"n_cols":49,"rows_kept":74,"cut":false,"hidden":false,"merged":[[69,19,69,29],[67,9,69,15],[69,16,69,18],[69,30,69,32],[73,27,73,30],[57,9,57,18],[67,19,67,29],[67,30,67,32],[68,19,68,29],[68,30,68,32],[67,16,67,18],[68,16,68,18],[61,20,61,23],[57,30,57,32],[57,19,57,29],[44,16,44,18],[45,16,45,18],[43,9,45,15],[49,27,49,30],[43,30,43,32],[44,30,44,32],[45,30,45,32],[43,19,43,29],[44,19,44,29],[45,19,45,29],[37,16,37,18],[38,16,38,18],[39,16,39,18],[38,30,38,32],[43,16,43,18],[31,16,31,18],[32,16,32,18],[33,16,33,18],[31,9,33,15],[37,30,37,32],[37,9,39,15],[31,30,31,32],[32,30,32,32],[33,30,33,32],[31,19,31,29],[33,19,33,29],[32,19,32,29],[39,30,39,32],[37,19,37,29],[38,19,38,29],[39,19,39,29],[25,20,25,23],[18,9,18,18],[18,19,18,29],[18,30,18,32],[21,9,21,18],[21,19,21,29],[21,30,21,32],[14,9,14,18],[14,19,14,29],[14,30,14,32],[5,17,5,20],[5,22,5,40],[6,17,6,20],[6,22,6,40],[6,41,6,49],[7,17,7,20],[7,22,7,40],[1,0,1,49],[2,40,2,41],[2,43,2,44],[2,46,2,47],[4,17,4,20],[4,22,4,40]]}
[]
["中小企業信用保険法第2条第5項第5号認定申請書添付資料(イ-６)"]
[null,null,null,null,null,null,null,null,null,null,null,null,null,null,null,null,null,null,null,null,null,null,null,null,null,null,null,null,null,null,null,null,null,null,null,null,null,null,"令和",null,null,null,"年",null,null,"月",null,null,"日"]
[]
[null,null,null,null,null,null,null,null,null,null,null,null,null,null,null,null,null,"所在地"]
[null,null,null,null,null,null,null,null,null,null,null,null,null,null,null,null,null,"企業名"]
[null,null,null,null,null,null,null,null,null,null,null,null,null,null,null,null,null,"代表者名",null,null,null,null,null,null,null,null,null,null,null,null,null,null,null,null,null,null,null,null,null,null,null,"個人事業主の場合\n代表者名は自署"]
[null,null,null,null,null,null,null,null,null,null,null,null,null,null,null,null,null,"電話番号",null,null,null,null,"(　　　　　　　　)"]
[null,null,null,null,null,null,null,null,"（１）前年の企業全体の売上高等に対する指定業種に属する事業の売上高等の減少額等の割合"]
[]
[null,null,null,null,null,null,null,null,"（イ）　最近１か月間の売上高等"]
[]
[null,null,null,null,null,null,null,null,"　A：申込時点における最近１か月間の指定業種に属する事業の売上高等（　　　　　　　　年　　　　　月）"]
[]
[null,null,null,null,null,null,null,null,null,"売上高等(実績)",null,null,null,null,null,null,null,null,null,null,null,null,null,null,null,null,null,null,null,null,"円【A】"]
[]
[null,null,null,null,null,null,null,null,"　B：Aの期間に対応する前年１か月間の指定業種に属する事業の売上高等（　　　　　　　　年　　　　　月）"]
[]
[null,null,null,null,null,null,null,null,null,"売上高等(実績)",null,null,null,null,null,null,null,null,null,null,null,null,null,null,null,null,null,null,null,null,"円【B】"]
[]
[null,null,null,null,null,null,null,null,"　C：Aの期間に対応する前年１か月間の全体の売上高等（　　　　　　　　年　　　　　月）"]
[null,null,null,null,null,null,null,null,null,"売上高等(実績)",null,null,null,null,null,null,null,null,null,null,null,null,null,null,null,null,null,null,null,null,"円【C】"]
[]
[null,null,null,null,null,null,null,null,"　割合"]
[]
[null,null,null,null,null,null,null,null,null,"　( B - A ) ÷ C × １００ ＝　",null,null,null,null,null,null,null,null,null,null,{"$f":"IFERROR(ROUNDDOWN(((T19-T15)/T22)*100,1),\"\")","v":""},null,null,null,"％","　","≧","　５％　(実績)"]
[]
[null,null,null,null,null,null,null,null,"（ロ）　最近３か月間の売上高等の実績見込み"]
[]
[null,null,null,null,null,null,null,null,"　D：Aの期間後２か月間の指定業種に属する事業の見込み売上高等（　　　　　　　　年　　　　　月 ～　　　　　月）"]
[]
[null,null,null,null,null,null,null,null,null,"売上高等(見込)",null,null,null,null,null,null,"月",null,null,null,null,null,null,null,null,null,null,null,null,null,"円"]
[null,null,null,null,null,null,null,null,null,null,null,null,null,null,null,null,"月",null,null,null,null,null,null,null,null,null,null,null,null,null,"円"]
[null,null,null,null,null,null,null,null,null,null,null,null,null,null,null,null,"合計",null,null,{"$f":"SUM(T32:AC33)","v":0},null,null,null,null,null,null,null,null,null,null,"円【D】"]
[]
[null,null,null,null,null,null,null,null,"　E：Dの期間に対応する前年の２か月間の指定業種に属する事業の売上高等（　　　　　　　　年　　　　　月～　　　　　月）"]
[]
[null,null,null,null,null,null,null,null,null,"売上高等（実績）",null,null,null,null,null,null,"月",null,null,null,null,null,null,null,null,null,null,null,null,null,"円"]
[null,null,null,null,null,null,null,null,null,null,null,null,null,null,null,null,"月",null,null,null,null,null,null,null,null,null,null,null,null,null,"円"]
[null,null,null,null,null,null,null,null,null,null,null,null,null,null,null,null,"合計",null,null,{"$f":"SUM(T38:AC39)","v":0},null,null,null,null,null,null,null,null,null,null,"円【E】"]
[]
[null,null,null,null,null,null,null,null,"　F：Dの期間に対応する前年の２か月間の全体の売上高等（　　　　　　　　年　　　　　月～　　　　　月）"]
[]
[null,null,null,null,null,null,null,null,null,"売上高等（実績）",null,null,null,null,null,null,"月",null,null,null,null,null,null,null,null,null,null,null,null,null,"円"]
[null,null,null,null,null,null,null,null,null,null,null,null,null,null,null,null,"月",null,null,null,null,null,null,null,null,null,null,null,null,null,"円"]
[null,null,null,null,null,null,null,null,null,null,null,null,null,null,null,null,"合計",null,null,{"$f":"SUM(T44:AC45)","v":0},null,null,null,null,null,null,null,null,null,null,"円【F】"]
[]
[null,null,null,null,null,null,null,null,"　割合"]
[]
[null,null,null,null,null,null,null,null,null,"　（( B ＋E) - （ A + D ） ÷ （ C + F ）） × １００ ＝　",null,null,null,null,null,null,null,null,null,null,null,null,null,null,null,null,null,{"$f":"IFERROR(ROUNDDOWN((((T19+T40)-(T15+T34))/(T22+T46))*100,1),\"\")","v":""},null,null,null,"％","　","≧","　５％　(実績見込み)"]
[]
[null,null,null,null,null,null,null,null,"（2）企業全体の売上高等の減少率"]
[]
[null,null,null,null,null,null,null,null,"（イ）　最近１か月間の売上高等"]
[]
[null,null,null,null,null,null,null,null,"　G：Aの期間に対応する全体の売上高等（　　　　　　　　年　　　　　月）"]
[]
[null,null,null,null,null,null,null,null,null,"全体の売上高等（実績）",null,null,null,null,null,null,null,null,null,null,null,null,null,null,null,null,null,null,null,null,"円【G】"]
[]
[null,null,null,null,null,null,null,null,"　減少率"]
[]
[null,null,null,null,null,null,null,null,null,"　( C - G ) ÷ C × １００ ＝　",null,null,null,null,null,null,null,null,null,null,{"$f":"IFERROR(ROUNDDOWN(((T22-T58)/T22)*100,1),\"\")","v":""},null,null,null,"％","　","≧","　５％　(実績)"]
[]
[null,null,null,null,null,null,null,null,"（ロ）　最近３か月間の売上高等の実績見込み"]
[]
[null,null,null,null,null,null,null,null,"　H：Gの期間後２か月間の全体の見込み売上高等（　　　　　　　　年　　　　　月～　　　　　月）"]
[]
[null,null,null,null,null,null,null,null,null,"売上高等（見込）",null,null,null,null,null,null,"月",null,null,null,null,null,null,null,null,null,null,null,null,null,"円"]
[null,null,null,null,null,null,null,null,null,null,null,null,null,null,null,null,"月",null,null,null,null,null,null,null,null,null,null,null,null,null,"円"]
[null,null,null,null,null,null,null,null,null,null,null,null,null,null,null,null,"合計",null,null,{"$f":"SUM(T68:AD69)","v":0},null,null,null,null,null,null,null,null,null,null,"円【H】"]
[]
[null,null,null,null,null,null,null,null,null,"　減少率"]
[]
[null,null,null,null,null,null,null,null,null,"　（ ( C ＋F) - （ G + H ） ÷ （ C + F ） ） × １００ ＝　",null,null,null,null,null,null,null,null,null,null,null,null,null,null,null,null,null,{"$f":"IFERROR(ROUNDDOWN((((T22+T46)-(T58+T70))/(T22+T46))*100,1),\"\")","v":""},null,null,null,"％","　","≧","　５％　(実績見込み)"]

{"sheet":"イ-7","index":3,"n_rows":27,"n_cols":49,"rows_kept":27,"cut":false,"hidden":false,"merged":[[26,20,26,23],[12,9,12,18],[12,19,12,29],[12,30,12,32],[16,19,16,29],[16,30,16,32],[18,30,18,32],[22,9,22,18],[22,19,22,29],[22,30,22,32],[16,9,18,15],[16,16,16,18],[17,16,17,18],[18,16,18,18],[17,19,17,29],[18,19,18,29],[17,30,17,32],[7,17,7,20],[7,22,7,40],[1,0,1,49],[2,40,2,41],[2,43,2,44],[2,46,2,47],[4,17,4,20],[4,22,4,40],[5,17,5,20],[5,22,5,40],[6,17,6,20],[6,22,6,40],[6,41,6,49]]}
[]
["中小企業信用保険法第2条第5項第5号認定申請書添付資料(イ-7)"]
[null,null,null,null,null,null,null,null,null,null,null,null,null,null,null,null,null,null,null,null,null,null,null,null,null,null,null,null,null,null,null,null,null,null,null,null,null,null,"令和",null,null,null,"年",null,null,"月",null,null,"日"]
[]
[null,null,null,null,null,null,null,null,null,null,null,null,null,null,null,null,null,"所在地"]
[null,null,null,null,null,null,null,null,null,null,null,null,null,null,null,null,null,"企業名"]
[null,null,null,null,null,null,null,null,null,null,null,null,null,null,null,null,null,"代表者名",null,null,null,null,null,null,null,null,null,null,null,null,null,null,null,null,null,null,null,null,null,null,null,"個人事業主の場合\n代表者名は自署"]
[null,null,null,null,null,null,null,null,null,null,null,null,null,null,null,null,null,"電話番号",null,null,null,null,"(　　　　　　　　)"]
[null,null,null,null,null,null,null,null,"（イ）　最近１か月間の売上高等"]
[]
[null,null,null,null,null,null,null,null,"　A：申込時点における最近１か月間の売上高等（　　　　　　　　年　　　　　月）"]
[]
[null,null,null,null,null,null,null,null,null,"売上高等(実績)",null,null,null,null,null,null,null,null,null,null,null,null,null,null,null,null,null,null,null,null,"円【A】"]
[]
[null,null,null,null,null,null,null,null,"　B：Aの期間前2か月間の売上高等（　　　　　　　　年　　　　　月 ～　　　　　月）"]
[]
[null,null,null,null,null,null,null,null,null,"売上高等(実績)",null,null,null,null,null,null,"月",null,null,null,null,null,null,null,null,null,null,null,null,null,"円"]
[null,null,null,null,null,null,null,null,null,null,null,null,null,null,null,null,"月",null,null,null,null,null,null,null,null,null,null,null,null,null,"円"]
[null,null,null,null,null,null,null,null,null,null,null,null,null,null,null,null,"合計",null,null,{"$f":"SUM(T17:AD18)","v":0},null,null,null,null,null,null,null,null,null,null,"円【B】"]
[]
[null,null,null,null,null,null,null,null,"　C：最近３か月間の売上高等の平均（　　　　　　　　年　　　　　月 ～　　　　　月）"]
[]
[null,null,null,null,null,null,null,null,null,"平均売上高等（A + B）÷３",null,null,null,null,null,null,null,null,null,{"$f":"(T13+T19)/3","v":0},null,null,null,null,null,null,null,null,null,null,"円【C】"]
[]
[null,null,null,null,null,null,null,null,"　減少率"]
[]
[null,null,null,null,null,null,null,null,null,"　( C - A ) ÷ C × １００ ＝　",null,null,null,null,null,null,null,null,null,null,{"$f":"IFERROR(ROUNDDOWN(((T23-T13)/T23)*100,1),\"\")","v":""},null,null,null,"％","　","≧","　５％　(実績)"]

{"sheet":"イ-8","index":4,"n_rows":33,"n_cols":49,"rows_kept":33,"cut":false,"hidden":false,"merged":[[26,16,26,18],[27,16,27,18],[28,16,28,18],[26,9,28,15],[32,27,32,30],[26,30,26,32],[27,30,27,32],[28,30,28,32],[26,19,26,29],[27,19,27,29],[28,19,28,29],[20,20,20,23],[12,9,12,18],[12,19,12,29],[12,30,12,32],[16,9,16,18],[16,19,16,29],[16,30,16,32],[7,17,7,20],[7,22,7,40],[1,0,1,49],[2,40,2,41],[2,43,2,44],[2,46,2,47],[4,17,4,20],[4,22,4,40],[5,17,5,20],[5,22,5,40],[6,17,6,20],[6,22,6,40],[6,41,6,49]]}
[]
["中小企業信用保険法第2条第5項第5号認定申請書添付資料(イ-８)"]
[null,null,null,null,null,null,null,null,null,null,null,null,null,null,null,null,null,null,null,null,null,null,null,null,null,null,null,null,null,null,null,null,null,null,null,null,null,null,"令和",null,null,null,"年",null,null,"月",null,null,"日"]
[]
[null,null,null,null,null,null,null,null,null,null,null,null,null,null,null,null,null,"所在地"]
[null,null,null,null,null,null,null,null,null,null,null,null,null,null,null,null,null,"企業名"]
[null,null,null,null,null,null,null,null,null,null,null,null,null,null,null,null,null,"代表者名",null,null,null,null,null,null,null,null,null,null,null,null,null,null,null,null,null,null,null,null,null,null,null,"個人事業主の場合\n代表者名は自署"]
[null,null,null,null,null,null,null,null,null,null,null,null,null,null,null,null,null,"電話番号",null,null,null,null,"(　　　　　　　　)"]
[null,null,null,null,null,null,null,null,"（イ）　最近１か月間の売上高等"]
[]
[null,null,null,null,null,null,null,null,"　A：申込時点における最近１か月間の売上高等（　　　　　　　　年　　　　　月）"]
[]
[null,null,null,null,null,null,null,null,null,"売上高等(実績)",null,null,null,null,null,null,null,null,null,null,null,null,null,null,null,null,null,null,null,null,"円【A】"]
[]
[null,null,null,null,null,null,null,null,"　B：令和元年１２月の売上高等"]
[]
[null,null,null,null,null,null,null,null,null,"売上高等(実績)",null,null,null,null,null,null,null,null,null,null,null,null,null,null,null,null,null,null,null,null,"円【B】"]
[]
[null,null,null,null,null,null,null,null,"　減少率"]
[]
[null,null,null,null,null,null,null,null,null,"　( B - A ) ÷ B × １００ ＝　",null,null,null,null,null,null,null,null,null,null,{"$f":"IFERROR(ROUNDDOWN(((T17-T13)/T17)*100,1),\"\")","v":""},null,null,null,"％","　","≧","　５％　(実績)"]
[]
[null,null,null,null,null,null,null,null,"（ロ）　最近３か月間の売上高等の実績見込み"]
[]
[null,null,null,null,null,null,null,null,"　C：Aの期間後２か月間の見込み売上高等（　　　　　　　　年　　　　　月～　　　　　月）"]
[]
[null,null,null,null,null,null,null,null,null,"売上高等(見込)",null,null,null,null,null,null,"月",null,null,null,null,null,null,null,null,null,null,null,null,null,"円"]
[null,null,null,null,null,null,null,null,null,null,null,null,null,null,null,null,"月",null,null,null,null,null,null,null,null,null,null,null,null,null,"円"]
[null,null,null,null,null,null,null,null,null,null,null,null,null,null,null,null,"合計",null,null,{"$f":"SUM(T27:AC28)","v":0},null,null,null,null,null,null,null,null,null,null,"円【C】"]
[]
[null,null,null,null,null,null,null,null,"　減少率"]
[]
[null,null,null,null,null,null,null,null,null,"（ ( B × ３ )-（ A + C ） ÷ （ B × ３ ） ） × １００ ＝　",null,null,null,null,null,null,null,null,null,null,null,null,null,null,null,null,null,{"$f":"IFERROR(ROUNDDOWN((((T17*3)-(T13+T29))/(T17*3))*100,1),\"\")","v":""},null,null,null,"％","　","≧","　５％　(実績見込み)"]

{"sheet":"イ-9","index":5,"n_rows":40,"n_cols":49,"rows_kept":40,"cut":false,"hidden":false,"merged":[[39,22,39,25],[19,19,19,29],[19,30,19,32],[16,9,19,15],[16,16,16,18],[17,16,17,18],[18,16,18,18],[19,16,19,18],[35,29,35,31],[27,20,27,23],[33,8,35,14],[33,15,33,17],[33,18,33,28],[33,29,33,31],[34,15,34,17],[34,18,34,28],[34,29,34,31],[35,15,35,17],[35,18,35,28],[12,9,12,18],[12,19,12,29],[12,30,12,32],[16,19,16,29],[16,30,16,32],[17,19,17,29],[18,19,18,29],[17,30,17,32],[18,30,18,32],[23,9,23,18],[23,19,23,29],[23,30,23,32],[7,17,7,20],[7,22,7,40],[1,0,1,49],[2,40,2,41],[2,43,2,44],[2,46,2,47],[4,17,4,20],[4,22,4,40],[5,17,5,20],[5,22,5,40],[6,17,6,20],[6,22,6,40],[6,41,6,49]]}
[]
["中小企業信用保険法第2条第5項第5号認定申請書添付資料(イ-９)"]
[null,null,null,null,null,null,null,null,null,null,null,null,null,null,null,null,null,null,null,null,null,null,null,null,null,null,null,null,null,null,null,null,null,null,null,null,null,null,"令和",null,null,null,"年",null,null,"月",null,null,"日"]
[]
[null,null,null,null,null,null,null,null,null,null,null,null,null,null,null,null,null,"所在地"]
[null,null,null,null,null,null,null,null,null,null,null,null,null,null,null,null,null,"企業名"]
[null,null,null,null,null,null,null,null,null,null,null,null,null,null,null,null,null,"代表者名",null,null,null,null,null,null,null,null,null,null,null,null,null,null,null,null,null,null,null,null,null,null,null,"個人事業主の場合\n代表者名は自署"]
[null,null,null,null,null,null,null,null,null,null,null,null,null,null,null,null,null,"電話番号",null,null,null,null,"(　　　　　　　　)"]
[null,null,null,null,null,null,null,null,"（イ）　最近１か月間の売上高等"]
[]
[null,null,null,null,null,null,null,null,"　A：申込時点における最近１か月間の売上高等（　　　　　　　　年　　　　　月）"]
[]
[null,null,null,null,null,null,null,null,null,"売上高等(実績)",null,null,null,null,null,null,null,null,null,null,null,null,null,null,null,null,null,null,null,null,"円【A】"]
[]
[null,null,null,null,null,null,null,null,"　B：令和元年１０月から１２月の売上高等"]
[]
[null,null,null,null,null,null,null,null,null,"売上高等(実績)",null,null,null,null,null,null,"１０月",null,null,null,null,null,null,null,null,null,null,null,null,null,"円"]
[null,null,null,null,null,null,null,null,null,null,null,null,null,null,null,null,"１１月",null,null,null,null,null,null,null,null,null,null,null,null,null,"円"]
[null,null,null,null,null,null,null,null,null,null,null,null,null,null,null,null,"１２月",null,null,null,null,null,null,null,null,null,null,null,null,null,"円"]
[null,null,null,null,null,null,null,null,null,null,null,null,null,null,null,null,"合計",null,null,{"$f":"SUM(T17:AD19)","v":0},null,null,null,null,null,null,null,null,null,null,"円【B】"]
[]
[null,null,null,null,null,null,null,null,"　C：令和元年１０月から１２月の平均売上高等"]
[]
[null,null,null,null,null,null,null,null,null,"平均売上高等（B÷３）",null,null,null,null,null,null,null,null,null,{"$f":"T20/3","v":0},null,null,null,null,null,null,null,null,null,null,"円【C】"]
[]
[null,null,null,null,null,null,null,null,"　減少率"]
[]
[null,null,null,null,null,null,null,null,null,"　( C - A ) ÷ C × １００ ＝　",null,null,null,null,null,null,null,null,null,null,{"$f":"IFERROR(ROUNDDOWN(((T24-T13)/T24)*100,1),\"\")","v":""},null,null,null,"％","　","≧","　５％　(実績)"]
[]
[null,null,null,null,null,null,null,null,"（ロ）　最近３か月間の売上高等の実績見込み"]
[]
[null,null,null,null,null,null,null,null,"　D：Aの期間後２か月間の見込み売上高等（　　　　　　　　年　　　　　月～　　　　　月）"]
[]
[null,null,null,null,null,null,null,null,"売上高等(見込)",null,null,null,null,null,null,"月",null,null,null,null,null,null,null,null,null,null,null,null,null,"円"]
[null,null,null,null,null,null,null,null,null,null,null,null,null,null,null,"月",null,null,null,null,null,null,null,null,null,null,null,null,null,"円"]
[null,null,null,null,null,null,null,null,null,null,null,null,null,null,null,"合計",null,null,{"$f":"SUM(S34:AC35)","v":0},null,null,null,null,null,null,null,null,null,null,"円【D】"]
[]
[null,null,null,null,null,null,null,null,"　減少率"]
[]
[null,null,null,null,null,null,null,null,null,"　（ B -（ A + D ）） ÷ B × １００ ＝　",null,null,null,null,null,null,null,null,null,null,null,null,{"$f":"IFERROR(ROUNDDOWN((T20-(T13+S36))/T20*100,1),\"\")","v":""},null,null,null,"％","　","≧","　５％　(実績見込み)"]

{"sheet":"イ-10","index":6,"n_rows":31,"n_cols":49,"rows_kept":31,"cut":false,"hidden":false,"merged":[[28,20,28,23],[30,20,30,23],[17,9,17,18],[17,19,17,29],[17,30,17,32],[18,9,18,18],[18,19,18,29],[18,30,18,32],[22,9,22,18],[22,19,22,29],[22,30,22,32],[23,9,23,18],[23,19,23,29],[23,30,23,32],[12,9,12,18],[12,19,12,29],[12,30,12,32],[13,9,13,18],[13,19,13,29],[13,30,13,32],[7,17,7,20],[7,22,7,40],[1,0,1,49],[2,40,2,41],[2,43,2,44],[2,46,2,47],[4,17,4,20],[4,22,4,40],[5,17,5,20],[5,22,5,40],[6,17,6,20],[6,22,6,40],[6,41,6,49]]}
[]
["中小企業信用保険法第2条第5項第5号認定申請書添付資料(イ-１０)"]
[null,null,null,null,null,null,null,null,null,null,null,null,null,null,null,null,null,null,null,null,null,null,null,null,null,null,null,null,null,null,null,null,null,null,null,null,null,null,"令和",null,null,null,"年",null,null,"月",null,null,"日"]
[]
[null,null,null,null,null,null,null,null,null,null,null,null,null,null,null,null,null,"所在地"]
[null,null,null,null,null,null,null,null,null,null,null,null,null,null,null,null,null,"企業名"]
[null,null,null,null,null,null,null,null,null,null,null,null,null,null,null,null,null,"代表者名",null,null,null,null,null,null,null,null,null,null,null,null,null,null,null,null,null,null,null,null,null,null,null,"個人事業主の場合\n代表者名は自署"]
[null,null,null,null,null,null,null,null,null,null,null,null,null,null,null,null,null,"電話番号",null,null,null,null,"(　　　　　　　　)"]
[null,null,null,null,null,null,null,null,"（イ）　最近１か月間の売上高等"]
[]
[null,null,null,null,null,null,null,null,"　A：申込時点における最近１か月間の売上高等（　　　　　　　　年　　　　　月）"]
[]
[null,null,null,null,null,null,null,null,null,"主たる業種の\n売上高等(実績)",null,null,null,null,null,null,null,null,null,null,null,null,null,null,null,null,null,null,null,null,"円【A】"]
[null,null,null,null,null,null,null,null,null,"全体の\n売上高等(実績)",null,null,null,null,null,null,null,null,null,null,null,null,null,null,null,null,null,null,null,null,"円【A´】"]
[]
[null,null,null,null,null,null,null,null,"　B：Aの期間前２か月間の売上高等（　　　　　　　　年　　　　　月）"]
[]
[null,null,null,null,null,null,null,null,null,"主たる業種の\n売上高等(実績)",null,null,null,null,null,null,null,null,null,null,null,null,null,null,null,null,null,null,null,null,"円【B】"]
[null,null,null,null,null,null,null,null,null,"全体の\n売上高等(実績)",null,null,null,null,null,null,null,null,null,null,null,null,null,null,null,null,null,null,null,null,"円【B´】"]
[]
[null,null,null,null,null,null,null,null,"　C：最近３か月間の売上高等の平均（　　　　　　　　年　　　　　月 ～　　　　　月）"]
[]
[null,null,null,null,null,null,null,null,null,"主たる事業の\n平均売上高等（A + B）÷３",null,null,null,null,null,null,null,null,null,{"$f":"(T13+T18)/3","v":0},null,null,null,null,null,null,null,null,null,null,"円【C】"]
[null,null,null,null,null,null,null,null,null,"全体の\n平均売上高等（A´ + B´）÷３",null,null,null,null,null,null,null,null,null,{"$f":"(T14+T19)/3","v":0},null,null,null,null,null,null,null,null,null,null,"円【C´】"]
[]
[null,null,null,null,null,null,null,null,"　減少率"]
[]
[null,null,null,null,null,null,null,null,null,"主たる業種"]
[null,null,null,null,null,null,null,null,null,"　( C - A ) ÷ C × １００ ＝　",null,null,null,null,null,null,null,null,null,null,{"$f":"IFERROR(ROUNDDOWN(((T23-T13)/T23)*100,1),\"\")","v":""},null,null,null,"％","　","≧","　５％　(実績)"]
[null,null,null,null,null,null,null,null,null,"全体"]
[null,null,null,null,null,null,null,null,null,"　( C´ - A´ ) ÷ C´ × １００ ＝　",null,null,null,null,null,null,null,null,null,null,{"$f":"IFERROR(ROUNDDOWN(((T24-T14)/T24)*100,1),\"\")","v":""},null,null,null,"％",null,"≧","　５％　(実績)"]

{"sheet":"イ-11","index":7,"n_rows":44,"n_cols":49,"rows_kept":44,"cut":false,"hidden":false,"merged":[[43,27,43,30],[33,16,33,18],[34,9,36,15],[34,16,34,18],[35,16,35,18],[35,19,35,29],[35,30,35,32],[36,16,36,18],[36,19,36,29],[36,30,36,32],[41,27,41,30],[23,20,23,23],[25,20,25,23],[33,19,33,29],[32,19,32,29],[31,9,33,15],[31,19,31,29],[31,16,31,18],[32,16,32,18],[31,30,31,32],[34,19,34,29],[34,30,34,32],[33,30,33,32],[32,30,32,32],[17,9,17,18],[17,19,17,29],[17,30,17,32],[18,9,18,18],[18,19,18,29],[18,30,18,32],[12,9,12,18],[12,19,12,29],[12,30,12,32],[13,9,13,18],[13,19,13,29],[13,30,13,32],[7,17,7,20],[7,22,7,40],[1,0,1,49],[2,40,2,41],[2,43,2,44],[2,46,2,47],[4,17,4,20],[4,22,4,40],[5,17,5,20],[5,22,5,40],[6,17,6,20],[6,22,6,40],[6,41,6,49]]}
[]
["中小企業信用保険法第2条第5項第5号認定申請書添付資料(イ-１１)"]
[null,null,null,null,null,null,null,null,null,null,null,null,null,null,null,null,null,null,null,null,null,null,null,null,null,null,null,null,null,null,null,null,null,null,null,null,null,null,"令和",null,null,null,"年",null,null,"月",null,null,"日"]
[]
[null,null,null,null,null,null,null,null,null,null,null,null,null,null,null,null,null,"所在地"]
[null,null,null,null,null,null,null,null,null,null,null,null,null,null,null,null,null,"企業名"]
[null,null,null,null,null,null,null,null,null,null,null,null,null,null,null,null,null,"代表者名",null,null,null,null,null,null,null,null,null,null,null,null,null,null,null,null,null,null,null,null,null,null,null,"個人事業主の場合\n代表者名は自署"]
[null,null,null,null,null,null,null,null,null,null,null,null,null,null,null,null,null,"電話番号",null,null,null,null,"(　　　　　　　　)"]
[null,null,null,null,null,null,null,null,"（イ）　最近１か月間の売上高等"]
[]
[null,null,null,null,null,null,null,null,"　A：申込時点における最近１か月間の売上高等（　　　　　　　　年　　　　　月）"]
[]
[null,null,null,null,null,null,null,null,null,"主たる業種の\n売上高等(実績)",null,null,null,null,null,null,null,null,null,null,null,null,null,null,null,null,null,null,null,null,"円【A】"]
[null,null,null,null,null,null,null,null,null,"全体の\n売上高等(実績)",null,null,null,null,null,null,null,null,null,null,null,null,null,null,null,null,null,null,null,null,"円【A´】"]
[]
[null,null,null,null,null,null,null,null,"　B：令和元年１２月の売上高等"]
[]
[null,null,null,null,null,null,null,null,null,"主たる業種の\n売上高等(実績)",null,null,null,null,null,null,null,null,null,null,null,null,null,null,null,null,null,null,null,null,"円【B】"]
[null,null,null,null,null,null,null,null,null,"全体の\n売上高等(実績)",null,null,null,null,null,null,null,null,null,null,null,null,null,null,null,null,null,null,null,null,"円【B´】"]
[]
[null,null,null,null,null,null,null,null,"　減少率"]
[]
[null,null,null,null,null,null,null,null,null,"主たる業種"]
[null,null,null,null,null,null,null,null,null,"　( B - A ) ÷ B × １００ ＝　",null,null,null,null,null,null,null,null,null,null,{"$f":"IFERROR(ROUNDDOWN(((T18-T13)/T18)*100,1),\"\")","v":""},null,null,null,"％","　","≧","　５％　(実績)"]
[null,null,null,null,null,null,null,null,null,"全体"]
[null,null,null,null,null,null,null,null,null,"　( B´ - A´ ) ÷ B´ × １００ ＝　",null,null,null,null,null,null,null,null,null,null,{"$f":"IFERROR(ROUNDDOWN(((T19-T14)/T19)*100,1),\"\")","v":""},null,null,null,"％",null,"≧","　５％　(実績)"]
[]
[null,null,null,null,null,null,null,null,"（ロ）　最近３か月間の売上高等の実績見込み"]
[]
[null,null,null,null,null,null,null,null,"　C：Aの期間後２か月間の見込み売上高等（　　　　　　　　年　　　　　月 ～　　　　　月）"]
[]
[null,null,null,null,null,null,null,null,null,"主たる業種の\n売上高等（見込）",null,null,null,null,null,null,"月",null,null,null,null,null,null,null,null,null,null,null,null,null,"円"]
[null,null,null,null,null,null,null,null,null,null,null,null,null,null,null,null,"月",null,null,null,null,null,null,null,null,null,null,null,null,null,"円"]
[null,null,null,null,null,null,null,null,null,null,null,null,null,null,null,null,"合計",null,null,{"$f":"SUM(T32:AD33)","v":0},null,null,null,null,null,null,null,null,null,null,"円【C】"]
[null,null,null,null,null,null,null,null,null,"全体の\n売上高等（見込）",null,null,null,null,null,null,"月",null,null,null,null,null,null,null,null,null,null,null,null,null,"円"]
[null,null,null,null,null,null,null,null,null,null,null,null,null,null,null,null,"月",null,null,null,null,null,null,null,null,null,null,null,null,null,"円"]
[null,null,null,null,null,null,null,null,null,null,null,null,null,null,null,null,"合計",null,null,{"$f":"SUM(T35:AD36)","v":0},null,null,null,null,null,null,null,null,null,null,"円【C´】"]
[]
[null,null,null,null,null,null,null,null,"　減少率"]
[]
[null,null,null,null,null,null,null,null,null,"主たる業種"]
[null,null,null,null,null,null,null,null,null,"（ ( B × ３ ) - （A + C） ） ÷ （ B × ３ ） × １００ ＝　",null,null,null,null,null,null,null,null,null,null,null,null,null,null,null,null,null,{"$f":"IFERROR(ROUNDDOWN((((T18*3)-(T13+T34))/(T18*3))*100,1),\"\")","v":""},null,null,null,"％","　","≧","　５％　(実績)"]
[null,null,null,null,null,null,null,null,null,"全体"]
[null,null,null,null,null,null,null,null,null,"（ ( B´ × ３ ) - （A´ + C´） ） ÷ （ B´ × ３ ） × １００ ＝　",null,null,null,null,null,null,null,null,null,null,null,null,null,null,null,null,null,{"$f":"IFERROR(ROUNDDOWN((((T19*3)-(T14+T37))/(T19*3))*100,1),\"\")","v":""},null,null,null,"％","　","≧","　５％　(実績)"]

{"sheet":"イ-12","index":8,"n_rows":55,"n_cols":49,"rows_kept":55,"cut":false,"hidden":false,"merged":[[54,22,54,25],[45,29,45,31],[46,15,46,16],[46,18,46,28],[46,29,46,31],[47,15,47,17],[47,18,47,28],[47,29,47,31],[52,22,52,25],[24,16,24,18],[24,19,24,29],[24,30,24,32],[29,9,29,18],[29,19,29,29],[29,30,29,32],[21,9,24,15],[21,16,21,18],[23,16,23,18],[23,19,23,29],[23,30,23,32],[21,19,21,29],[21,30,21,32],[22,16,22,18],[22,19,22,29],[22,30,22,32],[45,8,47,14],[45,15,45,16],[45,18,45,28],[42,15,42,16],[43,15,43,16],[20,16,20,18],[20,19,20,29],[20,30,20,32],[43,29,43,31],[44,15,44,17],[44,18,44,28],[44,29,44,31],[28,9,28,18],[28,19,28,29],[28,30,28,32],[34,20,34,23],[42,8,44,14],[42,18,42,28],[42,29,42,31],[43,18,43,28],[36,20,36,23],[12,9,12,18],[12,19,12,29],[12,30,12,32],[17,9,20,15],[17,16,17,18],[17,19,17,29],[17,30,17,32],[18,16,18,18],[18,19,18,29],[18,30,18,32],[13,9,13,18],[13,19,13,29],[13,30,13,32],[19,16,19,18],[19,19,19,29],[19,30,19,32],[7,17,7,20],[7,22,7,40],[1,0,1,49],[2,40,2,41],[2,43,2,44],[2,46,2,47],[4,17,4,20],[4,22,4,40],[5,17,5,20],[5,22,5,40],[6,17,6,20],[6,22,6,40],[6,41,6,49]]}
[]
["中小企業信用保険法第2条第5項第5号認定申請書添付資料(イ-１２)"]
[null,null,null,null,null,null,null,null,null,null,null,null,null,null,null,null,null,null,null,null,null,null,null,null,null,null,null,null,null,null,null,null,null,null,null,null,null,null,"令和",null,null,null,"年",null,null,"月",null,null,"日"]
[]
[null,null,null,null,null,null,null,null,null,null,null,null,null,null,null,null,null,"所在地"]
[null,null,null,null,null,null,null,null,null,null,null,null,null,null,null,null,null,"企業名"]
[null,null,null,null,null,null,null,null,null,null,null,null,null,null,null,null,null,"代表者名",null,null,null,null,null,null,null,null,null,null,null,null,null,null,null,null,null,null,null,null,null,null,null,"個人事業主の場合\n代表者名は自署"]
[null,null,null,null,null,null,null,null,null,null,null,null,null,null,null,null,null,"電話番号",null,null,null,null,"(　　　　　　　　)"]
[null,null,null,null,null,null,null,null,"（イ）　最近１か月間の売上高等"]
[]
[null,null,null,null,null,null,null,null,"　A：申込時点における最近１か月間の売上高等（　　　　　　　　年　　　　　月）"]
[]
[null,null,null,null,null,null,null,null,null,"主たる業種の\n売上高等(実績)",null,null,null,null,null,null,null,null,null,null,null,null,null,null,null,null,null,null,null,null,"円【A】"]
[null,null,null,null,null,null,null,null,null,"全体の\n売上高等(実績)",null,null,null,null,null,null,null,null,null,null,null,null,null,null,null,null,null,null,null,null,"円【A´】"]
[]
[null,null,null,null,null,null,null,null,"　B：令和元年１０月から１２月の売上高等"]
[]
[null,null,null,null,null,null,null,null,null,"主たる業種の\n売上高等(実績)",null,null,null,null,null,null,"１０月",null,null,null,null,null,null,null,null,null,null,null,null,null,"円"]
[null,null,null,null,null,null,null,null,null,null,null,null,null,null,null,null,"１１月",null,null,null,null,null,null,null,null,null,null,null,null,null,"円"]
[null,null,null,null,null,null,null,null,null,null,null,null,null,null,null,null,"１２月",null,null,null,null,null,null,null,null,null,null,null,null,null,"円"]
[null,null,null,null,null,null,null,null,null,null,null,null,null,null,null,null,"合計",null,null,{"$f":"SUM(T18:AD20)","v":0},null,null,null,null,null,null,null,null,null,null,"円【B】"]
[null,null,null,null,null,null,null,null,null,"全体の\n売上高等(実績)",null,null,null,null,null,null,"１０月",null,null,null,null,null,null,null,null,null,null,null,null,null,"円"]
[null,null,null,null,null,null,null,null,null,null,null,null,null,null,null,null,"１１月",null,null,null,null,null,null,null,null,null,null,null,null,null,"円"]
[null,null,null,null,null,null,null,null,null,null,null,null,null,null,null,null,"１２月",null,null,null,null,null,null,null,null,null,null,null,null,null,"円"]
[null,null,null,null,null,null,null,null,null,null,null,null,null,null,null,null,"合計",null,null,{"$f":"SUM(T22:AD24)","v":0},null,null,null,null,null,null,null,null,null,null,"円【B´】"]
[]
[null,null,null,null,null,null,null,null,"　C：令和元年１０月から１２月の平均売上高等"]
[]
[null,null,null,null,null,null,null,null,null,"主たる業種の\n平均売上高（B÷３）",null,null,null,null,null,null,null,null,null,{"$f":"T21/3","v":0},null,null,null,null,null,null,null,null,null,null,"円【C】"]
[null,null,null,null,null,null,null,null,null,"全体の\n平均売上高（B´÷３）",null,null,null,null,null,null,null,null,null,{"$f":"T25/3","v":0},null,null,null,null,null,null,null,null,null,null,"円【C´】"]
[]
[null,null,null,null,null,null,null,null,"　減少率"]
[]
[null,null,null,null,null,null,null,null,null,"主たる業種"]
[null,null,null,null,null,null,null,null,null,"　( C - A ) ÷ C × １００ ＝　",null,null,null,null,null,null,null,null,null,null,{"$f":"IFERROR(ROUNDDOWN(((T29-T13)/T29)*100,1),\"\")","v":""},null,null,null,"％","　","≧","　５％　(実績)"]
[null,null,null,null,null,null,null,null,null,"全体"]
[null,null,null,null,null,null,null,null,null,"　( C´ - A ´) ÷ C´ × １００ ＝　",null,null,null,null,null,null,null,null,null,null,{"$f":"IFERROR(ROUNDDOWN(((T30-T14)/T30)*100,1),\"\")","v":""},null,null,null,"％","　","≧","　５％　(実績)"]
[]
[null,null,null,null,null,null,null,null,"（ロ）　最近３か月間の売上高等の実績見込み"]
[]
[null,null,null,null,null,null,null,null,"　D：Aの期間後２か月間の見込み売上高等（　　　　　　　　年　　　　　月 ～　　　　　月）"]
[]
[null,null,null,null,null,null,null,null,"主たる業種の\n売上高等(見込)",null,null,null,null,null,null,null,null,"月",null,null,null,null,null,null,null,null,null,null,null,"円"]
[null,null,null,null,null,null,null,null,null,null,null,null,null,null,null,null,null,"月",null,null,null,null,null,null,null,null,null,null,null,"円"]
[null,null,null,null,null,null,null,null,null,null,null,null,null,null,null,"合計",null,null,{"$f":"SUM(S43:AC44)","v":0},null,null,null,null,null,null,null,null,null,null,"円【D】"]
[null,null,null,null,null,null,null,null,"全体の\n売上高等(見込)",null,null,null,null,null,null,null,null,"月",null,null,null,null,null,null,null,null,null,null,null,"円"]
[null,null,null,null,null,null,null,null,null,null,null,null,null,null,null,null,null,"月",null,null,null,null,null,null,null,null,null,null,null,"円"]
[null,null,null,null,null,null,null,null,null,null,null,null,null,null,null,"合計",null,null,{"$f":"SUM(S46:AC47)","v":0},null,null,null,null,null,null,null,null,null,null,"円【D´】"]
[]
[null,null,null,null,null,null,null,null,"　減少率"]
[]
[null,null,null,null,null,null,null,null,null,"主たる業種"]
[null,null,null,null,null,null,null,null,null,"　（ B -（ A + D ）） ÷ B × １００ ＝　",null,null,null,null,null,null,null,null,null,null,null,null,{"$f":"IFERROR(ROUNDDOWN((T21-(T13+S45))/T21*100,1),\"\")","v":""},null,null,null,"％","　","≧","　５％　(実績見込み)"]
[null,null,null,null,null,null,null,null,null,"全体"]
[null,null,null,null,null,null,null,null,null,"　（ B´ -（ A´ + D´ ）） ÷ B´ × １００ ＝　",null,null,null,null,null,null,null,null,null,null,null,null,{"$f":"IFERROR(ROUNDDOWN((T25-(T14+S48))/T25*100,1),\"\")","v":""},null,null,null,"％","　","≧","　５％　(実績見込み)"]

{"sheet":"イ-13","index":9,"n_rows":47,"n_cols":49,"rows_kept":47,"cut":false,"hidden":false,"merged":[[46,17,46,20],[8,8,8,48],[30,9,32,15],[30,16,30,17],[30,19,30,29],[30,30,30,32],[31,16,31,17],[31,19,31,29],[31,30,31,32],[32,16,32,18],[32,19,32,29],[32,30,32,32],[17,16,17,17],[26,30,26,32],[22,9,22,18],[22,19,22,29],[22,30,22,32],[42,9,42,18],[42,19,42,29],[42,30,42,32],[36,20,36,23],[36,27,36,28],[26,9,26,18],[26,19,26,29],[12,9,12,18],[12,19,12,29],[12,30,12,32],[16,19,16,29],[16,30,16,32],[18,19,18,29],[18,30,18,32],[17,19,17,29],[17,30,17,32],[16,9,18,15],[16,16,16,17],[18,16,18,18],[7,17,7,20],[7,22,7,40],[1,0,1,49],[2,40,2,41],[2,43,2,44],[2,46,2,47],[4,17,4,20],[4,22,4,40],[5,17,5,20],[5,22,5,40],[6,17,6,20],[6,22,6,40],[6,41,6,49]]}
[]
["中小企業信用保険法第2条第5項第5号認定申請書添付資料(イ-１３)"]
[null,null,null,null,null,null,null,null,null,null,null,null,null,null,null,null,null,null,null,null,null,null,null,null,null,null,null,null,null,null,null,null,null,null,null,null,null,null,"令和",null,null,null,"年",null,null,"月",null,null,"日"]
[]
[null,null,null,null,null,null,null,null,null,null,null,null,null,null,null,null,null,"所在地"]
[null,null,null,null,null,null,null,null,null,null,null,null,null,null,null,null,null,"企業名"]
[null,null,null,null,null,null,null,null,null,null,null,null,null,null,null,null,null,"代表者名",null,null,null,null,null,null,null,null,null,null,null,null,null,null,null,null,null,null,null,null,null,null,null,"個人事業主の場合\n代表者名は自署"]
[null,null,null,null,null,null,null,null,null,null,null,null,null,null,null,null,null,"電話番号",null,null,null,null,"(　　　　　　　　)"]
[null,null,null,null,null,null,null,null,"（１）最近３か月の申請者全体の売上高等に対する、指定業種に属する事業の最近１か月間の売上高等の減少額等の割合"]
[]
[null,null,null,null,null,null,null,null,"　A：申込時点における最近１か月間の指定業種に属する事業の売上高等（　　　　　　　　年　　　　　月）"]
[]
[null,null,null,null,null,null,null,null,null,"売上高等(実績)",null,null,null,null,null,null,null,null,null,null,null,null,null,null,null,null,null,null,null,null,"円【A】"]
[]
[null,null,null,null,null,null,null,null,"　B：Aの期間前２か月間の指定業種に属する事業の売上高等（　　　　　　　　年　　　　　月 ～　　　　　月）"]
[]
[null,null,null,null,null,null,null,null,null,"売上高等(実績)",null,null,null,null,null,null,null,null,"月",null,null,null,null,null,null,null,null,null,null,null,"円"]
[null,null,null,null,null,null,null,null,null,null,null,null,null,null,null,null,null,null,"月",null,null,null,null,null,null,null,null,null,null,null,"円"]
[null,null,null,null,null,null,null,null,null,null,null,null,null,null,null,null,"合計",null,null,null,null,null,null,null,null,null,null,null,null,null,"円【B】"]
[]
[null,null,null,null,null,null,null,null,"　C：最近３か月間の指定業種に属する事業の売上高等の平均（　　　　　　　　年　　　　　月 ～　　　　　月）"]
[]
[null,null,null,null,null,null,null,null,null,"売上高等の平均（A + B）÷３",null,null,null,null,null,null,null,null,null,{"$f":"(T13+T19)/3","v":0},null,null,null,null,null,null,null,null,null,null,"円【C】"]
[]
[null,null,null,null,null,null,null,null,"　D：Aの期間に対応する申請者全体の売上高等（　　　　　　　　年　　　　　月 ～　　　　　月）"]
[]
[null,null,null,null,null,null,null,null,null,"売上高等(実績)",null,null,null,null,null,null,null,null,null,{"$f":"(T17+T23)/3","v":0},null,null,null,null,null,null,null,null,null,null,"円【D】"]
[]
[null,null,null,null,null,null,null,null,"　E：Aの期間に対応する申請者全体の売上高等（　　　　　　　　年　　　　　月 ～　　　　　月）"]
[]
[null,null,null,null,null,null,null,null,null,"売上高等(実績)",null,null,null,null,null,null,null,null,"月",null,null,null,null,null,null,null,null,null,null,null,"円"]
[null,null,null,null,null,null,null,null,null,null,null,null,null,null,null,null,null,null,"月",null,null,null,null,null,null,null,null,null,null,null,"円"]
[null,null,null,null,null,null,null,null,null,null,null,null,null,null,null,null,"合計",null,null,null,null,null,null,null,null,null,null,null,null,null,"円【E】"]
[]
[null,null,null,null,null,null,null,null,"　割合"]
[]
[null,null,null,null,null,null,null,null,null,"　( C - A ) ÷ ( D + E ) × １００ ＝　",null,null,null,null,null,null,null,null,null,null,{"$f":"IFERROR(ROUNDDOWN((T23-T13)/(T27+T33)*100,1),\"\")","v":""},null,null,null,"％","　","≧","　５％"]
[]
[null,null,null,null,null,null,null,null,"（２）　申請者全体の売上高等の減少率"]
[]
[null,null,null,null,null,null,null,null,"　F：最近３か月間の申請者全体の売上高等の平均（　　　　　　　　年　　　　　月 ～　　　　　月）"]
[]
[null,null,null,null,null,null,null,null,null,"売上高等の平均（D+ E）÷３",null,null,null,null,null,null,null,null,null,{"$f":"(T27+T33)/3","v":0},null,null,null,null,null,null,null,null,null,null,"円【F】"]
[]
[null,null,null,null,null,null,null,null,"　減少率"]
[]
[null,null,null,null,null,null,null,null,null,"　( F ＋D ) ÷ F ＝　",null,null,null,null,null,null,null,{"$f":"IFERROR(ROUNDDOWN((T43-T27)/T43,1),\"\")","v":""},null,null,null,"％","≧","　５％　(実績)"]

{"sheet":"イ-14","index":10,"n_rows":63,"n_cols":49,"rows_kept":63,"cut":false,"hidden":false,"merged":[[56,9,58,15],[56,16,56,17],[57,16,57,17],[58,16,58,18],[58,19,58,29],[57,19,57,29],[56,19,56,29],[56,30,56,32],[50,20,50,23],[62,27,62,30],[57,30,57,32],[58,30,58,32],[38,27,38,30],[40,8,40,48],[46,9,46,18],[46,19,46,29],[46,30,46,32],[22,9,22,18],[22,19,22,29],[22,30,22,32],[14,9,14,18],[14,19,14,29],[14,30,14,32],[18,19,18,29],[18,30,18,32],[18,9,18,18],[26,20,26,23],[26,27,26,28],[32,19,32,29],[32,30,32,32],[32,9,34,15],[32,16,32,17],[34,19,34,29],[34,30,34,32],[33,16,33,17],[33,19,33,29],[33,30,33,32],[34,16,34,18],[5,17,5,20],[5,22,5,40],[6,17,6,20],[6,22,6,40],[8,8,8,48],[6,41,6,49],[7,17,7,20],[7,22,7,40],[1,0,1,49],[2,40,2,41],[2,43,2,44],[2,46,2,47],[4,17,4,20],[4,22,4,40]]}
[]
["中小企業信用保険法第2条第5項第5号認定申請書添付資料(イ-１４)"]
[null,null,null,null,null,null,null,null,null,null,null,null,null,null,null,null,null,null,null,null,null,null,null,null,null,null,null,null,null,null,null,null,null,null,null,null,null,null,"令和",null,null,null,"年",null,null,"月",null,null,"日"]
[]
[null,null,null,null,null,null,null,null,null,null,null,null,null,null,null,null,null,"所在地"]
[null,null,null,null,null,null,null,null,null,null,null,null,null,null,null,null,null,"企業名"]
[null,null,null,null,null,null,null,null,null,null,null,null,null,null,null,null,null,"代表者名",null,null,null,null,null,null,null,null,null,null,null,null,null,null,null,null,null,null,null,null,null,null,null,"個人事業主の場合\n代表者名は自署"]
[null,null,null,null,null,null,null,null,null,null,null,null,null,null,null,null,null,"電話番号",null,null,null,null,"(　　　　　　　　)"]
[null,null,null,null,null,null,null,null,"（１）令和元年１２月の申請者全体の売上高等に対する、指定業種に属する事業の最近１か月間の売上高等の減少額等の割合"]
[]
[null,null,null,null,null,null,null,null,"(イ)　最近１か月間の売上高等"]
[]
[null,null,null,null,null,null,null,null,"　A：申込時点における最近１か月間の指定業種に属する事業の売上高等（　　　　　　　　年　　　　　月）"]
[]
[null,null,null,null,null,null,null,null,null,"売上高等(実績)",null,null,null,null,null,null,null,null,null,null,null,null,null,null,null,null,null,null,null,null,"円【A】"]
[]
[null,null,null,null,null,null,null,null,"　B：令和元年１２月の指定業種に属する事業の売上高等"]
[]
[null,null,null,null,null,null,null,null,null,"売上高等（実績）",null,null,null,null,null,null,null,null,null,null,null,null,null,null,null,null,null,null,null,null,"円【B】"]
[]
[null,null,null,null,null,null,null,null,"　C：令和元年１２月の企業全体の売上高等"]
[]
[null,null,null,null,null,null,null,null,null,"売上高等（実績）",null,null,null,null,null,null,null,null,null,null,null,null,null,null,null,null,null,null,null,null,"円【C】"]
[]
[null,null,null,null,null,null,null,null,"　割合"]
[]
[null,null,null,null,null,null,null,null,null,"　( B - A ) ÷ C × １００ ＝　",null,null,null,null,null,null,null,null,null,null,{"$f":"IFERROR(ROUNDDOWN(((T19-T15)/T23)*100,1),\"\")","v":""},null,null,null,"％","　","≧","　５％"]
[]
[null,null,null,null,null,null,null,null,"(ロ)　最近３か月間の売上高等の実績見込み"]
[]
[null,null,null,null,null,null,null,null,"　D：Aの期間後２か月間の指定業種に属する事業の見込み売上高等（　　　　　　　　年　　　　　月 ～　　　　　月）"]
[]
[null,null,null,null,null,null,null,null,null,"売上高等(見込)",null,null,null,null,null,null,null,null,"月",null,null,null,null,null,null,null,null,null,null,null,"円"]
[null,null,null,null,null,null,null,null,null,null,null,null,null,null,null,null,null,null,"月",null,null,null,null,null,null,null,null,null,null,null,"円"]
[null,null,null,null,null,null,null,null,null,null,null,null,null,null,null,null,"合計",null,null,{"$f":"SUM(T33:AD34)","v":0},null,null,null,null,null,null,null,null,null,null,"円【D】"]
[]
[null,null,null,null,null,null,null,null,"　割合"]
[]
[null,null,null,null,null,null,null,null,null,"（ ( B × ３ ) - （ A + D ） ） ÷ （ C × ３ ） × １００ ＝　",null,null,null,null,null,null,null,null,null,null,null,null,null,null,null,null,null,{"$f":"IFERROR(ROUNDDOWN((((T19*3)-(T15+T35))/(T23*3))*100,1),\"\")","v":""},null,null,null,"％","　","≧","　５％"]
[]
[null,null,null,null,null,null,null,null,"（２）企業全体の売上高等の減少率"]
[]
[null,null,null,null,null,null,null,null,"(イ)　最近１か月間の売上高等"]
[]
[null,null,null,null,null,null,null,null,"　E：Aの期間に対応する企業全体の売上高等（　　　　　　　　年　　　　　月）"]
[]
[null,null,null,null,null,null,null,null,null,"売上高等(実績)",null,null,null,null,null,null,null,null,null,null,null,null,null,null,null,null,null,null,null,null,"円【E】"]
[]
[null,null,null,null,null,null,null,null,"　減少率"]
[]
[null,null,null,null,null,null,null,null,null,"　( C - E ) ÷ C × １００ ＝　",null,null,null,null,null,null,null,null,null,null,{"$f":"IFERROR(ROUNDDOWN((T23-T47)/T23*100,1),\"\")","v":""},null,null,null,"％","　","≧","　５％（実績）"]
[]
[null,null,null,null,null,null,null,null,"（ロ）　最近３か月間の売上高等の実績見込み"]
[]
[null,null,null,null,null,null,null,null,"　F：Eの期間後２か月間の申請者全体の見込み売上高等（　　　　　　　　年　　　　　月 ～　　　　　月）"]
[]
[null,null,null,null,null,null,null,null,null,"売上高等（見込み）",null,null,null,null,null,null,null,null,"月",null,null,null,null,null,null,null,null,null,null,null,"円"]
[null,null,null,null,null,null,null,null,null,null,null,null,null,null,null,null,null,null,"月",null,null,null,null,null,null,null,null,null,null,null,"円"]
[null,null,null,null,null,null,null,null,null,null,null,null,null,null,null,null,"合計",null,null,{"$f":"SUM(T57:AD58)","v":0},null,null,null,null,null,null,null,null,null,null,"円【F】"]
[]
[null,null,null,null,null,null,null,null,"　減少率"]
[]
[null,null,null,null,null,null,null,null,null,"（ ( C × ３ ) - （ E + F ） ） ÷ （ C × ３ ） × １００ ＝　",null,null,null,null,null,null,null,null,null,null,null,null,null,null,null,null,null,{"$f":"IFERROR(ROUNDDOWN((((T23*3)-(T47+T59))/(T23*3))*100,1),\"\")","v":""},null,null,null,"％","　","≧","　５％（実績見込み）"]

{"sheet":"イ-15","index":11,"n_rows":69,"n_cols":49,"rows_kept":69,"cut":false,"hidden":false,"merged":[[68,21,68,24],[27,30,27,32],[28,16,28,18],[28,19,28,29],[28,30,28,32],[32,26,32,29],[63,19,63,29],[63,30,63,32],[64,16,64,18],[64,19,64,29],[64,30,64,32],[46,8,46,48],[52,9,52,18],[52,19,52,29],[52,30,52,32],[25,9,28,15],[25,16,25,17],[25,19,25,29],[25,30,25,32],[26,16,26,17],[26,19,26,29],[26,30,26,32],[27,16,27,17],[27,19,27,29],[62,9,64,15],[62,16,62,17],[62,19,62,29],[44,21,44,24],[56,26,56,29],[62,30,62,32],[63,16,63,17],[38,9,40,15],[38,16,38,17],[38,19,38,29],[38,30,38,32],[39,16,39,17],[39,19,39,29],[39,30,39,32],[40,16,40,18],[40,19,40,29],[40,30,40,32],[14,9,14,18],[14,19,14,29],[14,30,14,32],[21,19,21,29],[21,30,21,32],[18,19,18,29],[18,30,18,32],[19,19,19,29],[19,30,19,32],[18,9,21,15],[18,16,18,17],[19,16,19,17],[20,16,20,17],[21,16,21,18],[20,30,20,32],[20,19,20,29],[8,8,8,48],[7,17,7,20],[7,22,7,40],[1,0,1,49],[2,40,2,41],[2,43,2,44],[2,46,2,47],[4,17,4,20],[4,22,4,40],[5,17,5,20],[5,22,5,40],[6,17,6,20],[6,22,6,40],[6,41,6,49]]}
[]
["中小企業信用保険法第2条第5項第5号認定申請書添付資料(イ-１５)"]
[null,null,null,null,null,null,null,null,null,null,null,null,null,null,null,null,null,null,null,null,null,null,null,null,null,null,null,null,null,null,null,null,null,null,null,null,null,null,"令和",null,null,null,"年",null,null,"月",null,null,"日"]
[]
[null,null,null,null,null,null,null,null,null,null,null,null,null,null,null,null,null,"所在地"]
[null,null,null,null,null,null,null,null,null,null,null,null,null,null,null,null,null,"企業名"]
[null,null,null,null,null,null,null,null,null,null,null,null,null,null,null,null,null,"代表者名",null,null,null,null,null,null,null,null,null,null,null,null,null,null,null,null,null,null,null,null,null,null,null,"個人事業主の場合\n代表者名は自署"]
[null,null,null,null,null,null,null,null,null,null,null,null,null,null,null,null,null,"電話番号",null,null,null,null,"(　　　　　　　　)"]
[null,null,null,null,null,null,null,null,"（１）令和元年１０月から１２月の申請者全体の売上高等に対する、指定業種に属する事業の最近１か月間の売上高等の減少額等の割合"]
[]
[null,null,null,null,null,null,null,null,"(イ)　最近１か月間の売上高等"]
[]
[null,null,null,null,null,null,null,null,"　A：申込時点における最近１か月間の指定業種に属する事業の売上高等（　　　　　　　　年　　　　　月）"]
[]
[null,null,null,null,null,null,null,null,null,"売上高等(実績)",null,null,null,null,null,null,null,null,null,null,null,null,null,null,null,null,null,null,null,null,"円【A】"]
[]
[null,null,null,null,null,null,null,null,"　B：令和元年１０月から１２月の指定業種に属する事業の売上高等"]
[]
[null,null,null,null,null,null,null,null,null,"売上高等（実績）",null,null,null,null,null,null,null,null,"月",null,null,null,null,null,null,null,null,null,null,null,"円"]
[null,null,null,null,null,null,null,null,null,null,null,null,null,null,null,null,null,null,"月",null,null,null,null,null,null,null,null,null,null,null,"円"]
[null,null,null,null,null,null,null,null,null,null,null,null,null,null,null,null,null,null,"月",null,null,null,null,null,null,null,null,null,null,null,"円"]
[null,null,null,null,null,null,null,null,null,null,null,null,null,null,null,null,"合計",null,null,{"$f":"SUM(T19:AD21)","v":0},null,null,null,null,null,null,null,null,null,null,"円【B】"]
[]
[null,null,null,null,null,null,null,null,"　C：令和元年１０月から１２月の申請者全体の売上高等"]
[]
[null,null,null,null,null,null,null,null,null,"売上高等（実績）",null,null,null,null,null,null,null,null,"月",null,null,null,null,null,null,null,null,null,null,null,"円"]
[null,null,null,null,null,null,null,null,null,null,null,null,null,null,null,null,null,null,"月",null,null,null,null,null,null,null,null,null,null,null,"円"]
[null,null,null,null,null,null,null,null,null,null,null,null,null,null,null,null,null,null,"月",null,null,null,null,null,null,null,null,null,null,null,"円"]
[null,null,null,null,null,null,null,null,null,null,null,null,null,null,null,null,"合計",null,null,{"$f":"SUM(T26:AD28)","v":0},null,null,null,null,null,null,null,null,null,null,"円【C】"]
[]
[null,null,null,null,null,null,null,null,"　割合"]
[]
[null,null,null,null,null,null,null,null,null,"（（ B ÷ ３ ） - A ） ÷ （ C ÷ ３ ） × １００ ＝",null,null,null,null,null,null,null,null,null,null,null,null,null,null,null,null,{"$f":"IFERROR(ROUNDDOWN(((T22/3-T15)/(T29/3)*100),1),\"\")","v":""},null,null,null,"％",null,"≧","　５％"]
[]
[null,null,null,null,null,null,null,null,"(ロ)　最近３か月間の売上高等の実績見込み"]
[]
[null,null,null,null,null,null,null,null,"　D：Aの期間後２か月間の指定業種に属する事業の見込み売上高等（　　　　　　　　年　　　　　月 ～　　　　　月）"]
[]
[null,null,null,null,null,null,null,null,null,"売上高等(見込)",null,null,null,null,null,null,null,null,"月",null,null,null,null,null,null,null,null,null,null,null,"円"]
[null,null,null,null,null,null,null,null,null,null,null,null,null,null,null,null,null,null,"月",null,null,null,null,null,null,null,null,null,null,null,"円"]
[null,null,null,null,null,null,null,null,null,null,null,null,null,null,null,null,"合計",null,null,{"$f":"SUM(T39:AD40)","v":0},null,null,null,null,null,null,null,null,null,null,"円【D】"]
[]
[null,null,null,null,null,null,null,null,"　割合"]
[]
[null,null,null,null,null,null,null,null,null,"（ B - （ A + D ）） ÷ C × １００ ＝",null,null,null,null,null,null,null,null,null,null,null,{"$f":"IFERROR(ROUNDDOWN((T22-(T15+T41))/T29*100,1),\"\")","v":""},null,null,null,"％",null,"≧","　５％"]
[]
[null,null,null,null,null,null,null,null,"（２）企業全体の売上高等の減少率"]
[]
[null,null,null,null,null,null,null,null,"(イ)　最近１か月間の売上高等"]
[]
[null,null,null,null,null,null,null,null,"　E：Aの期間に対応する申請者全体の売上高等（　　　　　　　　年　　　　　月）"]
[]
[null,null,null,null,null,null,null,null,null,"売上高等(実績)",null,null,null,null,null,null,null,null,null,null,null,null,null,null,null,null,null,null,null,null,"円【E】"]
[]
[null,null,null,null,null,null,null,null,"　減少率"]
[]
[null,null,null,null,null,null,null,null,null,"（( C ÷ ３ ) - E） ÷ （ C ÷ ３ ）× １００ ＝　",null,null,null,null,null,null,null,null,null,null,null,null,null,null,null,null,{"$f":"IFERROR(ROUNDDOWN(((T29/3)-T53)/(T29/3)*100,1),\"\")","v":""},null,null,null,"％",null,"≧","　５％（実績）"]
[]
[null,null,null,null,null,null,null,null,"（ロ）　最近３か月間の売上高等の実績見込み"]
[]
[null,null,null,null,null,null,null,null,"　F：Eの期間後２か月間の申請者全体の見込み売上高等（　　　　　　　　年　　　　　月 ～　　　　　月）"]
[]
[null,null,null,null,null,null,null,null,null,"売上高等（見込み）",null,null,null,null,null,null,null,null,"月",null,null,null,null,null,null,null,null,null,null,null,"円"]
[null,null,null,null,null,null,null,null,null,null,null,null,null,null,null,null,null,null,"月",null,null,null,null,null,null,null,null,null,null,null,"円"]
[null,null,null,null,null,null,null,null,null,null,null,null,null,null,null,null,"合計",null,null,{"$f":"SUM(T63:AD64)","v":0},null,null,null,null,null,null,null,null,null,null,"円【F】"]
[]
[null,null,null,null,null,null,null,null,"　減少率"]
[]
[null,null,null,null,null,null,null,null,null,"( C - （ E + F ）） ÷ C × １００ ＝　",null,null,null,null,null,null,null,null,null,null,null,{"$f":"IFERROR(ROUNDDOWN((T29-(T53+T65))/T29*100,1),\"\")","v":""},null,null,null,"％",null,"≧","　５％（実績見込み）"]